Cogmind - Beta 16.1 @@@ ROGUE MODE // 2026.06.17 @ 21:20:21 Player: Kathisto Result: Destroyed by as-90204 with Assembled Blade Performance ------------- Evolutions (0) 0 Regions Visited (4) 800 Robots Destroyed (39) 195 Value Destroyed (692) 692 Prototype IDs (1) 20 Alien Tech Used (0) 0 Bonus (0) 0 TOTAL SCORE: 1707 Bonus ------- None Cogmind --------- Core Integrity 0/250 Matter 188/300 Energy 80/100 System Corruption 0% Temperature Cool (0) Movement Walking (190) Ox1 Location -9/Mines Parts ------- > --- POWER (1) -------- (None) > --- PROPULSION (2) --- Aluminum Leg Aluminum Leg > --- UTILITY (2) ------ Large Storage Unit Improved Targeting Computer > --- WEAPON (2) ------- Heavy Assault Rifle Heavy Assault Rifle > --- INVENTORY (15) --- Ion Engine Aluminum Leg Aluminum Leg High-capacity Matter Pod (200) Seismic Detector Seismic Detector Heavy Assault Rifle Improved Assault Rifle Improved Assault Rifle Improved Assault Rifle Improved Assault Rifle Peak State ------------ > --- POWER ------------ Light Nuclear Core > --- PROPULSION ------- Aluminum Leg Aluminum Leg > --- UTILITY ---------- Large Storage Unit Medium Armor Plating > --- WEAPON ----------- Improved Assault Rifle Improved Assault Rifle > --- INVENTORY -------- Ion Engine Aluminum Leg Aluminum Leg Aluminum Leg High-capacity Matter Pod Seismic Detector Seismic Detector Improved Targeting Computer Assault Rifle Heavy Assault Rifle Heavy Assault Rifle Heavy Assault Rifle Heavy Assault Rifle Improved Assault Rifle Improved Assault Rifle [Rating: 16] Favorites ----------- Power Light Nuclear Core Engine Ion Engine Power Core Light Nuclear Core Propulsion Aluminum Leg Leg Aluminum Leg Utility Large Storage Unit Device Seismic Detector Storage Large Storage Unit Processor Improved Targeting Computer Protection Medium Armor Plating Weapon Improved Assault Rifle Energy Gun Small Laser Ballistic Gun Improved Assault Rifle Launcher Rocket Launcher Build | -11 -10 -10 -10 -9 ------- Run | Yrd Mat Min Exi Min Slots Evolved . | . . . . . Power . | . . . . . Propulsion . | . . . . . Utility . | . . . . . Weapon . | . . . . . Parts Attached 32 | 8 15 2 . 7 Power 4 | 1 2 1 . . Engine 3 | 1 2 . . . Core 1 | . . 1 . . Reactor . | . . . . . Propulsion 9 | 2 5 . . 2 Treads . | . . . . . Leg 9 | 2 5 . . 2 Wheel . | . . . . . Hover . | . . . . . Flight . | . . . . . Utility 10 | 3 5 1 . 1 Device 3 | 2 1 . . . Storage 4 | 1 3 . . . Processor 1 | . . . . 1 Hackware . | . . . . . Protection 2 | . 1 1 . . Artifact . | . . . . . Weapon 9 | 2 3 . . 4 Energy Gun 1 | 1 . . . . Energy Cannon . | . . . . . Ballistic Gun 7 | 1 3 . . 3 Ballistic Cannon . | . . . . . Launcher 1 | . . . . 1 Special Weapon . | . . . . . Impact Weapon . | . . . . . Slashing Weapon . | . . . . . Piercing Weapon . | . . . . . Special Melee Weapon . | . . . . . Unidentified Prototypes 1 | . 1 . . . Parts Lost 4 | . 1 . . 3 Power 1 | . . . . 1 Propulsion . | . . . . . Utility 2 | . 1 . . 1 Weapon 1 | . . . . 1 Highest Loss Streak 3 | . 1 . . 3 To Critical Strikes . | . . . . . Average Backups 12 | . 9 15 15 14 Power . | . 1 1 1 1 Propulsion 2 | . 2 3 3 2 Utility 3 | . 3 4 4 3 Weapon 5 | . 2 7 7 6 Tool/Special . | . . . . . Unused Backups 10 | . 1 . . 9 Power 1 | . . . . 1 Propulsion 2 | . . . . 2 Utility 2 | . . . . 2 Weapon 5 | . 1 . . 4 Tool/Special . | . . . . . Average Slot Usage (%) 99 | . 99 100 100 97 Engine 5 | . 14 2 . . Core 8 | . . 11 14 12 Leg 28 | . 28 28 28 28 Device 5 | . 13 2 . . Storage 14 | . 14 14 14 14 Protection 8 | . . 11 14 12 Ballistic Gun 27 | . 25 28 28 27 Peak Build Rating 16 | 7 13 16 16 16 Average Rating 13 | 5 10 15 16 15 On Entrance 10 | . 7 13 16 16 Avg Prop Armor Cover (%) . | . . . . . Naked Turns . | . . . . . Heaviest Build 52 | 13 52 38 38 38 Greatest Support 23 | 20 20 20 20 23 Greatest Overweight (x) 2 | . 2 1 1 1 Average Overweight (x) . | . . 1 1 1 Largest Inventory Capacity 20 | 8 20 15 15 15 Average Capacity 13 | 6 11 15 15 15 Most Carried 15 | 2 15 15 15 15 Average Carried 12 | . 9 15 15 14 Final Capacity 15 | 8 15 15 15 15 Final Carried 15 | 2 15 15 15 11 Class Distribution -------------------- 100% | Mutant Dominant Class ---------------- Mutant | -10/Materials Mutant | -10/Mines Mutant | -10/Exiles Mutant | -9/Mines Resources | -11 -10 -10 -10 -9 ----------- Run | Yrd Mat Min Exi Min Matter Collected 1037 | 303 538 122 . 74 Remotely . | . . . . . Salvage Created 1026 | 106 569 217 . 134 Parts 88 | 9 48 24 . 7 Haulers Intercepted 2 | . 2 . . . Recyclers Shooed 1 | . . 1 . . Parts Field Recycled . | . . . . . Retrieved Matter . | . . . . . Parts Self-Destructed . | . . . . . Prevented . | . . . . . Parts Restored . | . . . . . Kills | -11 -10 -10 -10 -9 ------- Run | Yrd Mat Min Exi Min Combat Hostiles Destroyed 32 | . 13 11 . 8 Guns 28 | . 13 11 . 4 AOE 4 | . . . . 4 Classes Destroyed 9 | 2 5 . . 2 Builder 3 | . 3 . . . Tunneler 4 | 3 . 1 . . Hauler 2 | . 2 . . . Recycler 1 | 1 . . . . Watcher 2 | . 2 . . . Swarmer 15 | . 6 9 . . Grunt 11 | . 7 2 . 2 Duelist 1 | . . . . 1 Assembled 5 | . . . . 5 Best Kill Streak 5 | 2 5 5 . 5 Combat Bots Only 5 | . 3 5 . 5 Max Kills in Single Turn 3 | 1 2 2 . 3 Gunslinging 1 | . . 1 . . Exploded 3 | . . . . 3 Melee . | . . . . . Uniques/NPCs Destroyed . | . . . . . Combat | -11 -10 -10 -10 -9 -------- Run | Yrd Mat Min Exi Min Hostile Shots Fired 115 | . 55 28 . 32 Missed 28 | . 15 7 . 6 Hits 87 | . 40 21 . 26 Melee 13 | . . . . 13 Projectile 74 | . 40 21 . 13 Critical Strikes 2 | . . . . 2 Damage Taken 1287 | . 424 184 . 679 Core 254 | . 84 57 . 113 Absorbed by Shields . | . . . . . Core Remaining (%) 100 | 100 . . . . Volleys Fired 108 | 14 64 17 . 13 Largest 2 | 2 2 2 . 2 Hottest 60 | 60 60 46 . 56 Shots Fired 209 | 28 124 34 . 23 Gun 205 | 28 124 34 . 19 Cannon . | . . . . . Launcher 4 | . . . . 4 Special . | . . . . . Kinetic 168 | 14 101 34 . 19 Thermal 37 | 14 23 . . . Explosive 4 | . . . . 4 Electromagnetic . | . . . . . Robot Hit Streak 14 | 7 14 7 . 7 Robot Miss Streak 4 | 2 4 2 . 4 Penetration Max . | . . . . . Secondary Targets 6 | . 1 3 . 2 Max Gunslinging Chain 1 | . 1 1 . 1 Shots Hit Robots 128 | 19 76 20 . 13 Core Hits 70 | 8 32 15 . 15 Critical Kills . | . . . . . Critical Parts Destroyed . | . . . . . Critical Strikes . | . . . . . Melee Attacks . | . . . . . Impact . | . . . . . Slashing . | . . . . . Piercing . | . . . . . Sneak Attacks . | . . . . . Combat Hostiles . | . . . . . Follow-up Attacks . | . . . . . Damage Inflicted 1933 | 175 892 343 . 523 Guns 1542 | 175 891 283 . 193 Cannons . | . . . . . Explosions 330 | . . . . 330 Melee . | . . . . . Ramming 61 | . 1 60 . . Kinetic 1325 | 89 760 283 . 193 Thermal 217 | 86 131 . . . Explosive 330 | . . . . 330 Electromagnetic . | . . . . . Impact . | . . . . . Slashing . | . . . . . Piercing . | . . . . . Highest Corruption . | . . . . . Average Corruption . | . . . . . Corruption Purged . | . . . . . Corruption Blocked . | . . . . . Overload Shots . | . . . . . Overflow Damage . | . . . . . Projectiles . | . . . . . Explosions . | . . . . . Melee . | . . . . . Knockbacks . | . . . . . Impact . | . . . . . Kinetic . | . . . . . Secondary . | . . . . . Self-Inflicted Damage 111 | . . . . 111 Shots 3 | . . . . 3 Rammed . | . . . . . Targets Rammed 11 | 1 1 9 . . Kicked 11 | 1 1 9 . . Crushed . | . . . . . Highest Temperature 40 | 40 40 7 . 24 Average Temperature 16 | 23 14 4 . 14 Received Heat Transfer 222 | . 168 18 . 36 Siege Activations . | . . . . . Martial Activations . | . . . . . Shielding Activations . | . . . . . Robots Disrupted . | . . . . . Combat Hostiles . | . . . . . Robots Corrupted . | . . . . . Combat Hostiles . | . . . . . Parts Fried . | . . . . . Impact Corruptions . | . . . . . Robots Melted . | . . . . . Combat Hostiles . | . . . . . Parts Melted . | . . . . . Heat Transferred 500 | 200 300 . . . Parts Sabotaged . | . . . . . Parts Stolen . | . . . . . Parts Stripped . | . . . . . Power Chain Reactions . | . . . . . Alert | -11 -10 -10 -10 -9 ------- Run | Yrd Mat Min Exi Min Maximum Alert Level . | . . . . . Low Security (%) 100 | 100 100 100 . 100 Level 1 . | . . . . . Level 2 . | . . . . . Level 3 . | . . . . . Level 4 . | . . . . . Level 5 . | . . . . . High Security . | . . . . . Max Security . | . . . . . Peak Influence 135 | 10 91 135 . 69 Initial . | . . . . . Average 28 | 2 31 28 . 21 Influence Increases 768 | 20 368 281 . 99 Destroy 0b10 Robot/C 540 | . 260 220 . 60 Destroy 0b10 Robot/NC 60 | 20 35 5 . . Destroy Leader 108 | . 58 40 . 10 Disable Machine 15 | . 15 . . . Destroy Structure 30 | . . 1 . 29 Lose Combat Pursuer 15 | . . 15 . . Influence Decreases 768 | 20 368 281 . 99 Time Decay 738 | 20 358 281 . 79 Lost Part 30 | . 10 . . 20 Squads Dispatched 2 | . 2 . . . Investigation . | . . . . . Extermination . | . . . . . Reinforcement 2 | . 2 . . . Assault . | . . . . . Garrison . | . . . . . Intercept . | . . . . . Searches Triggered . | . . . . . Construction Impeded . | . . . . . Haulers Reinforced . | . . . . . Active Scanning Responses . | . . . . . Cargo Convoy Interrupts . | . . . . . Stealth | -11 -10 -10 -10 -9 --------- Run | Yrd Mat Min Exi Min Distress Signals 3 | . 1 1 . 1 Communications Jammed . | . . . . . Distress Signals . | . . . . . Times Spotted 51 | . 23 12 . 16 Peak Tracking Total 11 | . 4 5 . 11 Tactical Retreats 1 | . . 1 . . Traps | -11 -10 -10 -10 -9 ------- Run | Yrd Mat Min Exi Min Traps Triggered . | . . . . . Indirectly . | . . . . . Trap Hack Attempts . | . . . . . Triggered . | . . . . . Disarmed . | . . . . . Reprogrammed . | . . . . . Reused . | . . . . . Traps Extracted . | . . . . . Installed . | . . . . . Triggered . | . . . . . Machines | -11 -10 -10 -10 -9 ---------- Run | Yrd Mat Min Exi Min Machines Disabled 1 | . 1 . . . Max in Single Turn 1 | . 1 . . . Machines Repaired . | . . . . . Machines Dismantled . | . . . . . Machines Sabotaged . | . . . . . Overloaded Fab Kills . | . . . . . Hacking | -11 -10 -10 -10 -9 --------- Run | Yrd Mat Min Exi Min Machines Accessed 1 | . . . 1 . Terminals . | . . . . . Fabricators . | . . . . . Repair Stations . | . . . . . Recycling Units . | . . . . . Scanalyzers . | . . . . . Garrison Access . | . . . . . Total Hacks 1 | . . . 1 . Successful 1 | . . . 1 . Failed . | . . . . . Catastrophic . | . . . . . Database Lockouts . | . . . . . Manual . | . . . . . Terminals . | . . . . . Fabricators . | . . . . . Repair Stations . | . . . . . Recycling Units . | . . . . . Scanalyzers . | . . . . . Garrison Access . | . . . . . Terminal Hacks 1 | . . . 1 . Record 1 | . . . 1 . Fabricator Hacks . | . . . . . Repair Station Hacks . | . . . . . Recycling Unit Hacks . | . . . . . Scanalyzer . | . . . . . Garrison Access Hacks . | . . . . . Unauthorized Hacks . | . . . . . Terminals . | . . . . . Fabricators . | . . . . . Repair Stations . | . . . . . Recycling Units . | . . . . . Scanalyzers . | . . . . . Garrison Access . | . . . . . Data Cores Recovered . | . . . . . Used . | . . . . . Hacking Detections . | . . . . . Full Trace Events . | . . . . . Feedback Events . | . . . . . Feedback Blocked . | . . . . . Robot Schematics Acquired . | . . . . . Robots Built . | . . . . . Authchips . | . . . . . Time . | . . . . . Total Robot Build Rating . | . . . . . Part Schematics Acquired . | . . . . . Parts Built . | . . . . . Authchips . | . . . . . Time . | . . . . . Total Part Build Rating . | . . . . . Part Studies Acquired . | . . . . . Parts Repaired . | . . . . . Time . | . . . . . Parts Recycled . | . . . . . Recycled Matter . | . . . . . Retrieved Matter . | . . . . . Retrieved Components . | . . . . . Parts Scanalyzed . | . . . . . Part Schematics Acquired . | . . . . . Parts Damaged . | . . . . . Bothacking | -11 -10 -10 -10 -9 ------------ Run | Yrd Mat Min Exi Min Used RIF Installer . | . . . . . Robots Hacked . | . . . . . Non-combat . | . . . . . Combat . | . . . . . Robot Hacks Applied . | . . . . . Relay Couplers Released . | . . . . . Fabnet Peak Effective % . | . . . . . Robots Rewired . | . . . . . Allies Hacked . | . . . . . Hacks Repelled . | . . . . . Allies | -11 -10 -10 -10 -9 -------- Run | Yrd Mat Min Exi Min Total Allies . | . . . . . Largest Group . | . . . . . Highest-Rated Group . | . . . . . Highest-Rated Ally . | . . . . . Total Orders . | . . . . . Ally Attacks . | . . . . . Total Damage . | . . . . . Kills . | . . . . . Allies Corrupted . | . . . . . Allies Melted . | . . . . . Intel | -11 -10 -10 -10 -9 ------- Run | Yrd Mat Min Exi Min Active Infowar (turns) 1413 | 14 1151 227 . 21 Seismic 1413 | 14 1151 227 . 21 Robot Analysis Total . | . . . . . Derelict Logs Recovered 3 | . . 2 . 1 Drone Launches . | . . . . . Drone Recoveries . | . . . . . Exploration | -11 -10 -10 -10 -9 ------------- Run | Yrd Mat Min Exi Min Turns Passed 3711 | 111 1187 1288 850 275 Spaces Moved 1806 | 48 552 640 448 118 Core 4 | 4 . . . . Treads . | . . . . . Legs 1802 | 44 552 640 448 118 Wheels . | . . . . . Hover . | . . . . . Flight . | . . . . . Fastest Speed 50 | 50 120 190 190 190 Average Speed 182 | 114 173 190 190 190 Slowest Speed 260 | 120 260 190 190 190 Overloaded Moves . | . . . . . Propulsion Burnouts . | . . . . . Robots Hopped . | . . . . . Potential Cave-ins . | . . . . . Cave-ins Triggered . | . . . . . Exploration Rate (%) 62 | 3 81 99 89 38 Regions Visited 4 Branch Regions 3 Pre-discovered Areas 1 | . . 1 . . Known Exits Taken . | . . . . . Unknown Exits Taken 4 | 1 1 1 1 . Scrap Searched 2 | . . 1 . 1 Spaces Dug 19 | . . . . 19 Terrain Destroyed 41 | . . . . 41 Melee . | . . . . . Projectile . | . . . . . AOE 41 | . . . . 41 Terrain Rammed . | . . . . . Walls Destroyed . | . . . . . Machines Disabled . | . . . . . Actions | -11 -10 -10 -10 -9 --------- Run | Yrd Mat Min Exi Min Total 2010 | 75 674 669 447 145 Wait 19 | . 16 2 . 1 Move 1802 | 47 551 639 447 118 Hop . | . . . . . Pick Up 18 | 2 15 . . 1 Fast Attach 10 | 9 1 . . . Attach 4 | . . . . 4 Detach . | . . . . . Swap 22 | . 14 2 . 6 Drop 16 | 2 12 . . 2 Fire 108 | 14 64 17 . 13 Melee . | . . . . . Ram . | . . . . . Kick 11 | 1 1 9 . . Crush . | . . . . . Escape Stasis . | . . . . . Rewire . | . . . . . Trap . | . . . . . Miscellaneous . | . . . . . Route ------- -11/Scrapyard -10/Materials (discovered 4 exits: [*Mat x3] / [*Min]) -10/Mines (discovered 4 exits: [*Mat x2] / *Exi / [*Sub]) -10/Exiles -9/Mines History --------- Turn | Location | Event 29 | -11/Scrapyard | Discovered new exit (range 15) 112 | -11/Scrapyard | Entered Materials 190 | -10/Materials | Discovered new exit (range 13) 242 | -10/Materials | Discovered new exit (range 15) 317 | -10/Materials | Build established: Mutant 555 | -10/Materials | Discovered new exit (range 5) 846 | -10/Materials | Discovered new exit (range 15) 1299 | -10/Materials | Entered Mines 1375 | -10/Mines | Discovered new exit (range 12) 1440 | -10/Mines | Core integrity fell below 50% 1665 | -10/Mines | Discovered new exit (range 5) 1766 | -10/Mines | Learned 4 Materials zone layouts 1956 | -10/Mines | Deemed a non-threat by the Exiles lab entrance 1956 | -10/Mines | Discovered new exit (range 5) 2182 | -10/Mines | Discovered new exit (range 6) 2587 | -10/Mines | Entered Exiles 2587 | -10/Exiles | Found Exiles lab abandoned 3416 | -10/Exiles | Discovered new exit (range 10) 3437 | -10/Exiles | Entered Mines 3464 | -9/Mines | Learned Materials trap positions 3468 | -9/Mines | Met a Derelict bent on vengeance 3627 | -9/Mines | A weapon hastily lodged in a ceiling crevice suddenly fell to the ground 3666 | -9/Mines | Assembled infested the area 3711 | -9/Mines | Core integrity fell below 20% 3712 | -9/Mines | Destroyed by as-90204 with Assembled Blade Last Messages --------------- 03570_ K-01 Serf collects debris. 03574_ Acquired 29 matter. 03576_ K-01 Serf collects debris. 03627_ A Mak. Spear has been hastily shoved under some rubble with a note attached: "Stab them where it hurts!" 03666_ ALERT: Infestation in the mines, dispatching Demolisher response squad. 03682_ as-73052 destroyed. 03686_ as-13377 destroyed. 03686_ as-73201 destroyed. 03686_ Lgt. Nuclear Core destroyed. 03686_ Destroyed Lgt. Nuclear Core. 03686_ as-21244 destroyed. 03687_ Rocket Launcher destroyed. 03691_ as-11188 destroyed. 03691_ Switching to secondary target: as-95393. 03692_ Imp. Aluminum Leg severed. 03699_ Med. Armor Plating destroyed. 03710_ Hvy. Assault Rifle severed. Map ----- +----------------------------------------------------+ | ?????????????????????????????#####??????????????? | | ???????????????????????????### ##?????????????? | | ?????????????????????????### ###########???? | | ????????????????????????## ###?? | | ????????????????????????# = ##? | | ????????????????????????# ########%*%[ #? | | ????????????????????????## ##??????#" #? | | ?????????????????????????## #??????## ## | | ??????????????????????????# #?????## # | | ??????????????????????????# #?????# [ | | ??????????????????????????## #???# *%! | | ???????????????????????????## #??# # | | ????????????????????????????## #??# ### | | ???????????????????????####### ##?## ##?## | | ???????????????????????# #??## ##???# | | ???????????????????????# #####/ #???## ##????# | | ???????????????????????# #???# ##????# #??????# | | ???????????????????????# #???# #?????# ???????? | | ???????????????????????# #??? ?????# ???????? | | ???????????????????????# #??? #???? ???????# | | ???????????????????????# #???# ##??? ????#### | | ???????????????????????# #???####???# | | ???????????????????????# #??????????? | | ?????????????????####??# #???????????? | | ????????????????## ### #???????????? | | ?????????# ### ##@#????????????? ### | | ?????????# #a#????????????????## | | ????????# % = a #?????????????????# | | ????# % # #?????????????????# | | ?????? ## ## # ## #?????????????????# | | ??????????????#??#######a#?????????????????# | | ???????????????????????$ #?????????????????## | | ??????????????????????? #??????????????????### | | ??????????????????????? a#????????????????????## | | ??????????????????????? ?????????????????????## | | ??????????????????????? ##??????????????????????? | | ???????????????????????#????????????????????????? | | ????????????????????????????????????????????????? | | ????????????????????????????????????????????????? | | ????????????????????????????????????????????????? | | ????????????????????????????????????????????????? | | ????????????????????????????????????????????????? | | ????????????????????????????????????????????????? | | ????????????????????????????????????????????????? | | ????????????????????????????????????????????????? | | ????????????????????????????????????????????????? | | ????????????????????????????????????????????????? | | ????????????????????????????????????????????????? | | ????????????????????????????????????????????????? | | ????????????????????????????????????????????????? | +----------------------------------------------------+ Best States ------------- Heat Dissipation 25 Energy Generation 14 Energy Capacity 250 Matter Stores 300 Matter Capacity 300 Sight Range 16 Terrain Scan Density 10 Armor Coverage 225 Evasion (%) 55 Targeting Accuracy 6 Item Schematics ----------------- None Robot Schematics ------------------ None Fabricated ------------ Nothing Repaired ---------- Nothing Studied --------- None Alien Tech Used ----------------- None Achievements -------------- None Challenges ------------ None Game ------ Seed TransmissionSpikedRigger Manual? 0 Play Time 00:11:54 Cumulative 184.2 hours Start 2026.06.17 @ 21:09:46 End 2026.06.17 @ 21:20:21 Sessions 1 Manual Loads 0 Difficulty Rogue Special Mode None Game No. 96 Rogue 96 Adventurer 0 Explorer 0 Win Type - Total 20 Types 10/1/5/1/0/1/1/1/0/0 Lore% 65 Gallery% 59 Achievement% 63 Wizard Run 0 Options --------- Layout 1 ASCII 0 Keyboard 0 Movement Arrows Keybinds 0 Fullscreen 1 Font 24/Tamsyn Map View 50x35 Zoom Use 0% Tactical HUD 1 Map Filters NONE Filters NONE Steam 1 RUN: 3be29523-d194-4c47-bcba-e6a5ba6b23a4